bitfinex/quotes_ETHUSD_20250508
["timestamp","ask_amount","ask_price","bid_price","bid_amount"]
[1746738322121,4.6110758,2168.7,2167.5,4.61347585]
[1746738322122,4.61215884,2168.2,2167.6,3.0]
[1746738322358,0.04594914,2168.3,2167.7,0.04612302]
[1746738322659,0.04594914,2168.3,2167.2,2.03630137]
[1746738322865,0.04594914,2168.3,2167.6,4.61339179]
[1746738323069,4.61202417,2168.3,2167.6,0.9226986]
[1746738323373,4.61143361,2168.6,2167.9,0.55]
[1746738323666,0.04594914,2168.5,2168.0,3.0]
[1746738323833,4.61242283,2168.1,2167.2,0.8267]
[1746738324029,4.61211779,2168.3,2167.3,4.65998564]
[1746738324225,4.61403589,2167.3,2167.2,0.8267]
[1746738324476,4.61403589,2167.3,2166.6,0.8012]
[1746738324639,7.66027677,2167.2,2165.9,0.24068437]
[1746738324843,0.8049,2166.0,2165.7,0.29093231]
[1746738325031,4.6172315,2165.8,2165.7,0.29093231]
[1746738325681,18.8032315,2165.8,2165.7,0.29093231]
[1746738325978,4.6172315,2165.8,2165.7,0.24498317]
[1746738326185,4.61603453,2166.4,2165.7,0.24498317]
[1746738326379,3.0,2166.4,2165.7,0.24498317]
[1746738326553,0.8049,2166.6,2165.7,0.24498317]
[1746738326879,4.61531168,2166.8,2165.7,0.24498317]
[1746738327082,0.8049,2167.2,2165.7,3.12498317]
[1746738327254,7.61488762,2166.9,2165.8,0.31249832]
[1746738327462,4.61519417,2166.8,2165.8,0.55]
[1746738327751,0.8049,2167.2,2166.2,0.8012]
[1746738327948,0.8049,2167.2,2166.3,3.55]
[1746738327949,4.61430318,2167.2,2166.3,3.55]
[1746738328151,0.8049,2167.6,2165.7,0.12498317]
[1746738328342,5.4221315,2165.8,2165.7,0.12498317]
[1746738328543,3.55,2165.7,2164.3,0.40879476]
[1746738328744,3.0,2165.7,2164.3,0.40879476]
[1746738328984,7.61754047,2165.7,2164.3,0.40879476]
[1746738329153,0.8049,2165.8,2164.4,5.827]
[1746738329353,4.61799453,2165.5,2164.6,0.8012]
[1746738329586,5.75,2166.5,2164.7,7.66576378]
[1746738329791,4.6168183,2166.0,2165.2,3.55]
[1746738329942,5.75,2166.5,2165.3,3.0]
[1746738330279,4.61616581,2166.3,2165.3,3.0]
[1746738330478,4.6165944,2166.1,2165.4,0.55]
[1746738330646,4.61704925,2165.9,2165.4,0.55]
[1746738330846,17.4089,2166.8,2165.5,0.8012]
[1746738331152,4.61522071,2166.8,2165.6,3.55]
[1746738331345,4.61593456,2166.5,2165.6,7.92008357]
[1746738331571,0.13703935,2166.7,2165.5,0.8012]
[1746738331884,4.71382332,2166.6,2166.0,3.0]
[1746738332046,0.09820939,2166.6,2166.5,3.0]
[1746738332250,4.61401194,2167.4,2166.8,3.0]
[1746738332473,0.10063285,2167.3,2166.5,0.8012]
[1746738332677,4.61439347,2167.2,2166.6,0.04614861]
[1746738332880,0.10006168,2167.1,2166.6,0.5462909]
[1746738333188,4.61409373,2167.3,2166.5,0.8012]
[1746738333359,4.61523939,2166.8,2165.8,9.92852285]
[1746738333686,0.8049,2168.1,2166.7,4.61517418]
[1746738333845,10.47083573,2168.4,2166.3,3.0]
[1746738333846,4.61169525,2168.4,2166.3,3.0]
[1746738334046,3.0,2168.3,2166.3,4.61598777]
[1746738334386,5.753,2168.4,2165.5,16.612]
[1746738334387,4.61595188,2166.5,2165.5,5.877]
[1746738334587,4.61467466,2167.0,2165.6,4.6637746]
[1746738334773,4.61403589,2167.3,2165.8,4.61708095]
[1746738334961,4.61403589,2167.3,2165.9,3.0]
[1746738335154,4.61521211,2166.8,2166.0,0.55]
[1746738335456,4.61422963,2167.3,2166.7,5.16519934]
[1746738335655,0.8239,2168.0,2166.7,3.0]
[1746738335876,4.61410807,2167.3,2166.8,0.55]
[1746738336072,5.43563418,2168.4,2167.1,3.55]
[1746738336390,0.8239,2168.4,2167.3,0.8313]
[1746738336554,4.61374541,2167.5,2167.0,0.55]
[1746738336758,4.6139754,2167.4,2167.0,0.55]
[1746738337073,4.61233337,2168.1,2167.0,0.55]
[1746738337275,4.61573967,2166.5,2166.4,0.8313]
[1746738337450,0.7744,2167.6,2166.4,0.8313]
[1746738337451,4.61560002,2166.6,2166.4,0.8313]
[1746738337647,4.6158269,2166.5,2165.9,0.8313]
[1746738337987,10.36727814,2167.2,2165.9,0.8313]
[1746738337988,4.61630897,2166.3,2165.9,0.8313]
[1746738338186,4.61565573,2166.6,2165.9,0.8313]
[1746738338349,4.61609122,2166.4,2165.9,0.8313]
[1746738338549,3.0,2167.1,2165.9,0.8313]
[1746738338745,4.61616581,2166.3,2166.2,3.0]
[1746738338950,4.61564996,2166.6,2166.1,3.0]
[1746738339189,4.61446172,2167.1,2165.9,1.37617053]
[1746738339357,4.61446172,2167.1,2165.4,19.614]
[1746738339358,4.61701832,2165.9,2165.5,0.8313]
[1746738339558,4.61851099,2165.2,2165.1,0.8313]
[1746738339764,4.61558503,2166.6,2165.1,0.8313]
[1746738339963,5.754,2166.8,2165.1,0.8313]
[1746738339964,4.6177743,2165.6,2165.1,0.8313]
[1746738340191,4.61851099,2165.2,2165.1,0.8313]
[1746738340408,4.61616581,2166.3,2165.1,11.512328]
[1746738340707,4.61616581,2166.3,2165.1,0.7813]
[1746738340867,4.61798202,2165.5,2165.1,0.7813]
[1746738341214,4.61616581,2166.3,2164.3,5.899]
[1746738341215,4.61765792,2165.6,2164.3,5.899]
[1746738341369,0.7875,2165.8,2164.3,5.899]
[1746738341589,0.7875,2165.8,2164.3,0.5899]
[1746738341808,3.0,2165.6,2163.9,0.33990037]
[1746738342011,3.0,2165.7,2164.4,4.62018423]
[1746738342196,5.756,2165.5,2164.2,3.0]
[1746738342401,4.61701832,2165.9,2164.3,0.04618856]
[1746738342571,5.756,2166.0,2164.9,3.55]
[1746738342908,5.756,2166.0,2164.6,4.61959839]
[1746738342909,4.61862075,2165.2,2164.6,4.61959839]
[1746738343126,4.61880736,2165.1,2164.7,0.55]
[1746738343300,4.6187243,2165.1,2164.0,6.13880624]
[1746738343607,3.0,2166.0,2164.6,4.61968356]
[1746738343608,10.53888316,2165.5,2164.6,4.61968356]
[1746738343910,10.53888316,2165.5,2164.2,7.62062631]
[1746738343911,5.921,2166.0,2165.0,0.55]
[1746738344068,0.7875,2165.6,2163.8,0.35343684]
[1746738344409,4.6187243,2165.1,2163.8,3.536]
[1746738344608,4.61829769,2165.3,2164.0,0.55]
[1746738344609,4.61985612,2164.6,2164.0,0.55]
[1746738344794,0.04617712,2164.5,2163.8,0.536]
[1746738345113,4.61990717,2164.6,2164.0,4.62096599]
[1746738345266,4.66513949,2165.0,2163.8,5.1573345]
[1746738345267,4.62039976,2164.4,2163.8,0.88182041]
[1746738345467,4.620499,2164.3,2163.8,0.88182041]
[1746738345710,0.04617712,2164.2,2162.5,3.0]
[1746738345893,0.04617712,2164.2,2162.2,0.13643167]
[1746738345894,4.62363602,2162.8,2162.2,0.13643167]
[1746738346097,4.62363602,2162.8,2162.1,8.18335343]
[1746738346407,10.70539382,2164.4,2163.1,4.62295926]
[1746738346621,6.085,2164.4,2163.1,9.57035926]
[1746738346814,6.085,2164.4,2163.2,5.1727179]
[1746738347101,4.62064504,2164.2,2164.1,0.005]
[1746738348075,4.66682216,2164.2,2164.1,0.005]
[1746738348304,7.66682216,2164.2,2164.1,0.005]
[1746738348506,8.43932216,2164.2,2164.1,0.005]
[1746738348690,21.17932216,2164.2,2164.1,0.005]
[1746738348890,20.58314504,2164.2,2164.1,0.005]
[1746738349092,21.13314504,2164.2,2164.1,0.005]
[1746738349291,8.17085855,2164.1,2162.4,0.7528]
[1746738349492,4.62388983,2162.7,2162.5,0.04623553]
[1746738349694,4.62333584,2163.0,2162.4,0.7528]
[1746738349920,0.04617712,2162.9,2162.4,0.7528]
[1746738350127,4.6245494,2162.4,2161.9,4.96468731]
[1746738350420,16.63,2162.9,2161.4,9.33458817]
[1746738350718,4.6235607,2162.9,2162.3,0.8079]
[1746738350922,0.04617712,2162.8,2161.9,0.8079]
[1746738351086,0.04617712,2162.8,2161.3,0.29093231]
[1746738351087,4.62663088,2161.4,2161.3,0.29093231]
[1746738351281,4.62470517,2162.3,2161.4,3.486802]
[1746738351481,4.62641684,2161.5,2161.4,1.06518383]
[1746738351688,4.67259396,2161.5,2161.4,0.24108383]
[1746738351982,4.67259396,2161.5,2161.3,0.29093231]
[1746738351983,7.62663088,2161.4,2161.3,0.29093231]
[1746738352314,24.26363088,2161.4,2161.3,0.24475519]
[1746738352509,4.62663088,2161.4,2161.3,0.24475519]
[1746738353410,8.38863088,2161.4,2161.3,0.24475519]
[1746738353608,8.93863088,2161.4,2161.3,0.24475519]
[1746738353806,8.93863088,2161.4,2158.8,5.40974028]
[1746738353807,0.762,2161.0,2158.8,5.40974028]
[1746738354041,3.0,2160.8,2158.9,0.58729074]
[1746738354336,0.762,2160.9,2159.0,4.63163762]
[1746738354539,4.6301474,2159.8,2159.0,4.63156377]
[1746738354741,0.7893,2161.3,2160.0,4.62949287]
[1746738354939,16.645,2161.6,2159.8,0.55]
[1746738355150,4.62761541,2161.0,2160.0,0.55]
[1746738355306,3.0,2161.2,2159.7,0.7965]
[1746738355503,4.62672138,2161.4,2159.7,0.7965]
[1746738355704,0.55,2161.5,2159.7,0.7965]
[1746738355705,4.62641684,2161.5,2159.7,0.7965]
[1746738356037,4.62758513,2161.0,2160.4,0.55]
[1746738356241,4.62877244,2160.4,2159.2,0.7965]
[1746738356443,0.55,2160.4,2159.2,0.7965]
[1746738356739,4.63199722,2158.9,2158.7,0.7965]
[1746738356904,7.63070369,2159.5,2158.0,0.7965]
[1746738357234,7.63070369,2159.5,2158.1,0.04632694]
[1746738357235,3.0,2159.3,2158.1,0.04632694]
[1746738357438,7.4073,2159.6,2158.1,8.22968037]
[1746738357643,4.63236608,2158.8,2158.1,12.86325491]
[1746738357947,4.62971596,2160.0,2159.2,4.63121624]
[1746738358112,0.05,2160.0,2159.8,5.42892679]
[1746738358314,4.6280056,2160.8,2160.1,4.62925759]
[1746738358528,4.62765337,2161.0,2160.2,7.62908742]
[1746738358704,0.7864,2161.4,2160.1,0.3488703]
[1746738359041,0.7864,2162.0,2160.3,3.7566]
[1746738359243,0.7864,2162.0,2160.3,0.7566]
[1746738359424,0.7864,2162.0,2160.4,8.18335343]
[1746738359629,0.7864,2162.0,2160.5,0.89399534]
[1746738359813,23.379,2162.4,2160.4,0.55]
[1746738359814,16.654,2162.4,2160.4,0.55]
[1746738360015,4.73879242,2163.5,2162.4,5.385554]
[1746738360211,4.73879242,2163.5,2162.0,0.55]
[1746738360212,4.73879242,2163.5,2162.3,0.7659]
[1746738360503,4.73879242,2163.5,2162.0,0.55]
[1746738360704,4.73879242,2163.5,2162.1,0.28374647]
[1746738360906,4.62256737,2163.3,2162.2,0.04623771]
[1746738361213,4.73879242,2163.5,2162.5,4.62412374]
[1746738361415,4.73879242,2163.5,2162.7,0.55]
[1746738361625,4.73879242,2163.5,2162.6,8.22958472]
[1746738361626,4.62238778,2163.4,2162.6,8.18335343]
[1746738361936,4.73879242,2163.5,2162.6,0.55]
[1746738362137,4.73879242,2163.5,2162.8,0.55]
[1746738362356,4.73879242,2163.5,2162.5,6.792]
[1746738362499,4.6223537,2163.4,2162.1,4.62506476]
[1746738362701,4.62336301,2163.0,2162.1,3.0]
[1746738362899,0.55,2163.3,2161.6,6.798]
[1746738363200,4.62461264,2162.4,2161.7,3.0]
[1746738363401,7.62326097,2163.0,2161.9,0.8112]
[1746738363640,4.62300824,2163.1,2161.9,0.8112]
[1746738363843,11.41254064,2163.8,2162.5,0.55]
[1746738364013,4.6221509,2163.5,2162.6,4.6240406]
[1746738364343,4.62149921,2163.8,2162.5,0.55]
[1746738364503,4.62256737,2163.3,2162.0,0.8112]
[1746738364841,4.62337737,2163.0,2162.3,0.55]
[1746738365042,4.62210042,2163.6,2162.9,4.62342165]
[1746738365201,4.62126614,2164.0,2163.1,0.7615]
[1746738365411,6.791,2164.6,2163.2,0.04622391]
[1746738365613,6.791,2164.6,2163.5,4.62206243]
[1746738365822,4.6187243,2165.1,2163.8,0.8008]
[1746738366058,17.4198,2165.3,2163.9,0.04620575]
[1746738366217,4.61978141,2164.7,2164.0,4.62095738]
[1746738366415,6.789,2166.1,2164.7,4.619781]
[1746738366616,0.7658,2166.2,2165.0,4.61883127]
[1746738366850,4.61851099,2165.2,2165.1,0.04618061]
[1746738367055,4.62021807,2164.4,2164.3,0.7984]
[1746738367252,4.61811519,2165.4,2164.3,0.7984]
[1746738367437,4.61701832,2165.9,2164.7,0.55]
[1746738367640,6.789,2166.4,2164.6,0.7984]
[1746738367956,4.61823188,2165.4,2164.6,0.7984]
[1746738368141,0.8256,2166.9,2165.1,3.55]
[1746738368454,0.8256,2166.9,2165.3,0.7755]
[1746738368626,13.628,2167.2,2164.9,0.75]
[1746738368627,4.61893764,2165.0,2164.9,0.75]
[1746738369014,4.61882048,2165.1,2164.9,0.75]
[1746738369215,4.6172315,2165.8,2164.4,0.75]
[1746738369431,4.61982213,2164.6,2164.4,0.75]
[1746738369661,3.0,2165.9,2164.4,0.75]
[1746738369957,4.61922038,2164.9,2164.4,0.75]
[1746738370127,4.61922038,2164.9,2163.9,0.7765]
[1746738370128,4.62107208,2164.0,2163.9,0.7765]
[1746738370328,3.7732,2164.9,2162.8,3.0]
[1746738370329,4.62207787,2163.6,2163.3,1.12525016]
[1746738370554,0.7732,2164.9,2163.3,0.7765]
[1746738370751,4.61936437,2164.8,2163.4,3.04621014]
[1746738370953,4.61936437,2164.8,2163.4,0.7688]
[1746738371248,4.61936437,2164.8,2163.6,3.0]
[1746738371249,4.61957777,2164.7,2163.6,3.0]
[1746738371449,4.62019822,2164.5,2163.4,0.7688]
[1746738371696,4.62075046,2164.2,2163.5,0.7688]
[1746738371871,4.61851099,2165.2,2163.9,5.17124189]
[1746738372073,4.61851099,2165.2,2163.8,0.7688]
[1746738372074,4.6181521,2165.4,2164.7,0.55]
[1746738372268,6.825,2166.0,2165.0,4.22890185]
[1746738372269,4.61786837,2165.6,2165.0,4.22890185]
[1746738372479,4.61659203,2166.1,2165.1,0.59617648]
[1746738372665,4.61623605,2166.3,2165.8,0.55]
[1746738372980,0.7894,2167.3,2165.8,0.55]
[1746738372981,4.6151006,2166.8,2165.8,0.55]
[1746738373154,4.61631162,2166.3,2165.8,3.55]
[1746738373338,0.7894,2167.3,2165.4,0.7688]
[1746738373539,4.61446172,2167.1,2165.6,0.55]
[1746738373743,4.61545266,2166.7,2165.8,0.55]
[1746738373943,4.6172315,2165.8,2165.7,0.8256]
[1746738374167,4.6142488,2167.2,2165.7,0.8256]
[1746738374367,4.61808441,2165.4,2164.3,9.94368474]
[1746738374554,4.61659203,2166.1,2164.4,0.8256]
[1746738374858,21.25820198,2166.3,2165.0,0.8256]
[1746738375061,4.61812858,2165.4,2165.0,0.8256]
[1746738375260,4.61780823,2165.6,2165.0,3.8256]
[1746738375465,4.61777757,2165.6,2165.1,8.16868854]
[1746738375665,16.642,2166.3,2165.0,0.8256]
[1746738375867,4.61832565,2165.3,2165.0,0.8256]
[1746738376152,4.61816323,2165.4,2165.1,0.55]
[1746738376354,4.61721041,2165.9,2165.3,8.1682739]
[1746738376596,4.61571542,2166.6,2165.0,0.8256]
[1746738376597,4.61552663,2166.6,2165.0,0.8256]
[1746738376892,4.61697198,2166.0,2165.0,0.8256]
[1746738377065,5.43704812,2166.1,2165.0,0.8256]
[1746738377394,4.61808984,2165.4,2165.1,0.55]
[1746738377554,4.61808509,2165.4,2165.1,0.55]
[1746738377875,6.784,2166.6,2165.0,0.8256]
[1746738378076,6.784,2166.6,2165.1,0.55]
[1746738378296,4.61809573,2165.4,2165.1,0.55]
[1746738378455,4.61595273,2166.4,2165.0,0.8256]
[1746738378654,6.747,2166.7,2165.0,3.8256]
[1746738378655,5.43616028,2166.5,2165.0,3.8256]
[1746738378892,11.39956578,2166.6,2165.7,0.55]
[1746738379121,11.39956578,2166.6,2165.6,0.55]
[1746738379122,4.61629458,2166.3,2165.6,0.55]
[1746738379264,6.784,2166.6,2165.6,0.55]
[1746738379955,4.61758127,2165.7,2165.5,0.7586]
[1746738380182,4.61596781,2166.4,2165.5,0.7586]
[1746738380382,4.61668155,2166.1,2165.7,0.55]
[1746738380699,4.61765792,2165.6,2165.5,0.7586]
[1746738380879,4.61595273,2166.4,2165.5,0.7586]
[1746738380880,4.61666319,2166.1,2165.5,0.7586]
[1746738381190,4.61765792,2165.6,2165.5,0.7586]
[1746738381490,4.61903674,2165.0,2164.9,0.779]
[1746738381664,4.61903674,2165.0,2164.5,6.786]
[1746738381665,11.39955448,2165.7,2164.1,0.34776353]
[1746738381985,4.61829769,2165.3,2164.2,0.779]
[1746738382190,4.61765792,2165.6,2164.4,3.0]
[1746738382390,4.61787116,2165.5,2164.5,0.82518395]
[1746738382586,4.61928786,2164.9,2164.5,0.779]
[1746738382789,4.61962094,2164.7,2164.5,0.779]
[1746738382952,4.6193516,2164.9,2164.5,0.779]
[1746738383288,11.39928865,2165.8,2163.9,0.779]
[1746738383289,4.6187243,2165.1,2163.9,0.779]
[1746738383455,4.1187243,2165.1,2164.0,0.04620378]
[1746738383658,4.6183488,2165.3,2164.0,8.75157564]
[1746738383887,4.61976891,2164.7,2164.1,5.41705337]
[1746738384090,4.6199828,2164.6,2164.2,0.55]
[1746738384388,4.61946617,2164.8,2164.6,4.619982]
[1746738384594,4.61919925,2164.9,2164.4,8.17018359]
[1746738384755,4.61936437,2164.8,2164.7,0.8297]
[1746738384961,4.61919505,2164.9,2164.2,0.8297]
[1746738385170,4.62043154,2164.3,2164.2,0.8297]
[1746738385562,4.62032524,2164.4,2164.2,0.8297]
[1746738385758,4.62043154,2164.3,2164.2,0.8297]
[1746738385987,0.828,2164.9,2163.7,0.8297]
[1746738386185,0.828,2164.9,2163.7,1.76518978]
[1746738386385,5.44617186,2165.4,2164.3,3.55]
[1746738386587,6.782,2165.6,2164.4,0.8297]
[1746738386774,4.61992654,2164.6,2164.4,0.8297]
[1746738386981,4.6180454,2165.5,2164.4,0.8297]
[1746738387182,4.61745715,2165.7,2164.6,3.0]
[1746738387388,4.6192487,2164.9,2164.4,4.37473224]
[1746738387573,4.6195128,2164.8,2164.4,3.8297]
[1746738387899,4.61926865,2164.9,2164.4,8.44991735]
[1746738388057,4.61902252,2165.0,2164.5,4.61995566]
[1746738388263,4.61915672,2164.9,2164.6,0.55]
[1746738388697,4.61874707,2165.1,2164.6,7.96968963]
[1746738388896,4.61874707,2165.1,2164.6,0.68874633]
[1746738388897,4.61912063,2165.0,2164.6,0.68874633]
[1746738389063,5.44523774,2165.8,2164.4,0.8297]
[1746738389064,4.61977636,2164.7,2164.4,0.8297]
[1746738389508,4.62000462,2164.5,2164.4,0.8297]
[1746738389705,4.62085855,2164.1,2164.0,7.569]
[1746738389998,4.62076591,2164.2,2164.0,0.787]
[1746738390168,4.62030483,2164.4,2164.1,0.04620311]
[1746738390367,4.61978811,2164.7,2164.0,0.787]
[1746738390592,6.579,2164.8,2163.6,0.787]
[1746738390792,4.62256737,2163.3,2163.2,0.787]
[1746738390993,4.62256737,2163.3,2162.9,8.17203521]
[1746738390994,4.62342225,2162.9,2162.8,0.787]
[1746738391713,4.62128564,2163.9,2162.8,1.13829121]
[1746738392044,4.62193191,2163.6,2163.0,4.62312787]
[1746738392222,4.62227758,2163.5,2163.2,3.0]
[1746738392417,4.62085855,2164.1,2163.2,3.0]
[1746738392629,4.620207,2164.5,2163.4,0.8309]
[1746738392927,4.62155862,2163.8,2163.4,0.8309]
[1746738393131,4.62159573,2163.8,2163.4,0.8309]
[1746738393334,7.3877,2164.6,2162.9,0.8309]
[1746738393335,4.62123781,2164.0,2162.9,0.8309]
[1746738393494,0.7662,2163.9,2162.9,0.8309]
[1746738393690,4.62287389,2163.2,2162.9,0.8309]
[1746738394016,4.6232085,2163.0,2162.9,0.8309]
[1746738394331,4.62192874,2163.6,2162.8,0.35340512]
[1746738394494,4.62192874,2163.6,2162.5,8.17203521]
[1746738394695,4.62380229,2162.8,2162.5,8.17203521]
[1746738394922,4.62255882,2163.4,2162.5,8.17203521]
[1746738395136,4.6217128,2163.7,2162.5,8.17203521]
[1746738395344,4.62373304,2162.8,2162.5,8.17203521]
[1746738395629,0.7662,2165.0,2163.7,3.0]
[1746738395830,4.62061383,2164.3,2163.8,7.077]
[1746738396033,0.7662,2165.0,2163.9,1.46986996]
[1746738396331,4.62062238,2164.3,2163.8,7.077]
[1746738396893,4.62027727,2164.4,2163.8,7.077]
[1746738397231,0.7662,2165.0,2163.5,15.52403521]
[1746738397232,4.62083348,2164.2,2163.5,5.39402179]
[1746738397534,4.62075689,2164.2,2163.5,1.11330007]
[1746738397833,4.62163321,2163.8,2162.9,0.772]
[1746738398127,4.62163119,2163.8,2163.2,4.62276862]
[1746738398293,6.581,2164.4,2163.4,3.0]
[1746738398495,0.7662,2164.8,2163.0,0.772]
[1746738398691,4.62294039,2163.2,2163.0,0.772]
[1746738398896,4.62299477,2163.1,2163.0,0.772]
[1746738399136,4.6232613,2163.0,2162.7,8.51114671]
[1746738399330,4.6231429,2163.1,2162.7,8.5573787]
[1746738399501,4.62252985,2163.4,2162.7,8.5573787]
[1746738399700,4.62235391,2163.4,2162.7,8.51114671]
[1746738399930,6.581,2163.9,2162.3,0.00940681]
[1746738400233,4.6229498,2163.2,2162.3,0.35735656]
[1746738400419,4.62422354,2162.6,2162.3,0.34965656]
[1746738400630,4.62395259,2162.7,2162.3,0.34965656]
[1746738400811,4.62414055,2162.6,2162.3,0.34965656]
[1746738401533,4.6239754,2162.7,2162.3,0.34965656]
[1746738401700,4.6232085,2163.0,2162.3,0.34965656]
[1746738401907,4.62409655,2162.6,2162.3,0.34965656]
[1746738402406,4.62282067,2163.2,2162.3,0.34965656]
[1746738402598,4.62419489,2162.6,2162.3,0.34965656]
[1746738402803,4.62386964,2162.7,2162.3,0.00170681]
[1746738402804,4.6244913,2162.4,2162.3,0.00170681]
[1746738403537,4.62439221,2162.5,2162.3,0.00170681]
[1746738403738,4.62367624,2162.8,2162.3,0.00170681]
[1746738404046,16.643,2162.9,2162.3,0.00170681]
[1746738404354,4.6244913,2162.4,2162.3,0.00170681]
[1746738404738,16.643,2162.9,2162.3,0.00170681]
[1746738405041,4.62387938,2162.7,2162.3,3.75390681]
[1746738405242,4.62436101,2162.5,2162.3,3.75390681]
[1746738405441,4.6244913,2162.4,2162.3,0.00170681]
[1746738406541,5.4105913,2162.4,2162.3,0.00170681]
[1746738408359,4.6244913,2162.4,2162.3,0.00170681]
[1746738409056,4.6194913,2162.4,2162.3,0.00170681]
[1746738409278,4.62562358,2161.9,2161.5,3.0]
[1746738409443,4.62477218,2162.3,2161.6,0.42323365]
[1746738409747,4.62451152,2162.4,2161.6,0.37698]
[1746738409924,4.62567431,2161.9,2161.6,0.37698]
[1746738410120,4.62567431,2161.9,2161.5,3.0]
[1746738410658,4.62406362,2162.6,2161.4,3.7698]
[1746738410953,4.625888,2161.8,2161.4,3.7698]
[1746738411356,4.62514847,2162.1,2161.4,3.7698]
[1746738411523,4.62406362,2162.6,2161.4,0.7698]
[1746738411524,4.62619989,2161.7,2161.4,0.7698]
[1746738411718,4.62629616,2161.6,2161.4,0.7698]
[1746738411924,4.62641684,2161.5,2161.4,0.7698]
[1746738412549,4.62470517,2162.3,2161.4,0.7698]
[1746738412748,4.6259728,2161.8,2161.4,0.7698]
[1746738413058,4.62601426,2161.7,2161.4,0.7698]
[1746738413260,0.7567,2163.5,2161.8,0.55]
[1746738413562,4.62421042,2162.6,2162.3,3.7533]
[1746738413729,0.7567,2163.5,2162.3,3.7533]
[1746738413937,4.62348093,2162.9,2162.3,8.37789985]
[1746738414150,4.62288791,2163.2,2162.7,3.0]
[1746738414332,4.62203325,2163.6,2163.0,8.37644827]
[1746738414535,5.37801132,2163.9,2163.0,0.7533]
[1746738414752,4.62200684,2163.6,2163.0,0.7533]
[1746738414958,4.6240199,2162.7,2162.5,0.8126]
[1746738415261,5.41226737,2163.3,2162.2,8.17203521]
[1746738415445,4.62460866,2162.4,2162.1,3.8126]
[1746738415670,4.62460002,2162.4,2162.1,3.8126]
[1746738415866,4.62362658,2162.9,2162.2,0.04624383]
[1746738416074,4.62393196,2162.7,2162.2,0.04624383]
[1746738416266,5.41234548,2163.3,2162.2,2.023003]
[1746738416471,4.62278106,2163.2,2162.0,8.17203521]
[1746738416799,4.62529509,2162.1,2161.6,0.8126]
[1746738417143,4.62497791,2162.2,2161.7,3.04625131]
[1746738417469,4.62529356,2162.1,2161.7,0.04625131]
[1746738417671,4.62384981,2162.7,2161.6,5.4387024]
[1746738417977,4.62492286,2162.2,2161.6,7.09977616]
[1746738418181,4.62492286,2162.2,2161.6,7.09983028]
[1746738418384,4.62463315,2162.4,2161.7,5.17585592]
[1746738418678,4.62521327,2162.1,2161.6,1.16692196]
[1746738418881,4.62544332,2162.0,2161.6,1.16692196]
[1746738419179,11.02677821,2162.8,2161.6,1.16692196]
[1746738419180,5.41242623,2163.3,2162.3,0.8126]
[1746738419348,4.62374205,2162.8,2162.3,0.8126]
[1746738419548,4.62355863,2162.9,2162.3,0.8126]
[1746738419747,5.41227322,2163.3,2162.3,0.8126]
[1746738419968,4.62394858,2162.7,2162.3,0.8126]
[1746738420171,4.62395894,2162.7,2162.3,0.8126]
[1746738420375,4.62302614,2163.1,2162.4,0.04623785]
[1746738420376,4.62299477,2163.1,2162.4,0.04623785]
[1746738420592,4.62299643,2163.1,2162.2,3.0]
[1746738420923,0.7897,2163.3,2162.2,3.0]
[1746738421095,4.6240433,2162.7,2161.8,0.8072]
[1746738421282,4.62556084,2161.9,2161.8,0.8072]
[1746738421483,4.62554576,2162.0,2161.8,0.8072]
[1746738421683,6.231,2163.1,2161.8,0.8072]
[1746738422010,6.231,2163.1,2161.4,0.8072]
[1746738422011,4.62470517,2162.3,2161.4,0.8072]
[1746738422222,4.62564374,2161.9,2161.5,0.04625871]
[1746738422397,4.62608324,2161.7,2161.4,0.8072]
[1746738422570,4.62491906,2162.2,2161.4,0.8072]
[1746738422775,4.62641684,2161.5,2161.4,0.8072]
[1746738422970,4.62663088,2161.4,2161.3,0.005]
[1746738423399,4.62656504,2161.5,2161.3,0.005]
[1746738423599,4.626145,2161.7,2161.3,0.005]
[1746738423801,4.62619133,2161.7,2161.3,0.005]
[1746738424111,7.0341,2162.5,2161.3,0.005]
[1746738424270,4.62663088,2161.4,2161.3,0.005]
[1746738424475,4.62646944,2161.5,2161.3,0.005]
[1746738424476,4.62652473,2161.5,2161.3,0.005]
[1746738424685,4.62663088,2161.4,2161.3,0.005]
[1746738425181,0.8021,2161.8,2161.3,0.005]
[1746738425496,4.62663088,2161.4,2161.3,0.005]
[1746738426516,8.97873088,2161.4,2161.3,0.005]
[1746738426666,4.62834397,2160.6,2159.6,0.7697]
[1746738426871,0.8021,2160.7,2159.9,12.80182207]
[1746738426872,4.62832099,2160.7,2159.9,12.80182207]
[1746738427071,0.8021,2161.2,2160.0,4.62948162]
[1746738427299,4.62813568,2160.7,2160.1,4.6294084]
[1746738427498,0.8021,2161.6,2160.3,8.94173521]
[1746738427681,17.4541,2162.0,2160.5,0.55]
[1746738427885,17.4541,2162.0,2160.8,3.55]
[1746738428109,0.8021,2162.3,2161.1,0.7697]
[1746738428314,4.62491906,2162.2,2161.2,4.62695942]
[1746738428534,4.62491906,2162.2,2161.1,0.7697]
[1746738428535,0.8021,2162.3,2161.3,4.62673746]
[1746738428750,5.42687795,2162.3,2161.6,3.0]
[1746738428913,0.786,2163.0,2162.4,4.62433719]
[1746738429101,4.6223537,2163.4,2162.6,4.62406362]
[1746738429297,8.59933793,2163.7,2162.8,3.0]
[1746738429498,8.59933793,2163.7,2162.7,0.0462314]
[1746738429499,3.97752136,2163.7,2162.6,0.7614]
[1746738429729,4.62270911,2163.3,2162.6,0.7614]
[1746738430041,4.62384981,2162.7,2162.6,0.7614]
[1746738430246,4.62361134,2162.9,2162.4,3.0]
[1746738430445,4.62368985,2162.8,2162.2,3.7545]
[1746738430647,4.6228001,2163.2,2162.3,11.21827546]
[1746738430848,3.97752136,2163.7,2162.9,0.8129]
[1746738431149,4.62327861,2163.0,2162.5,3.8129]
[1746738431512,3.97752136,2163.7,2162.5,3.8129]
[1746738431864,0.02339069,2464.3,2162.1,0.35031898]
[1746738431865,4.62396411,2162.7,2162.1,0.8129]
[1746738432144,0.7704,2163.7,2162.3,8.17203521]
[1746738432356,4.62149921,2163.8,2162.6,4.62406362]